[Event "Masterklassen 2025"]
[Site "Uppsala, Sweden"]
[Date "2025.06.28"]
[Round "1.15"]
[White "Darnell, Anton"]
[Black "Ask, Josef"]
[Result "1/2-1/2"]
[TimeControl "90 min for 40 move + 30 min with an increment of 30 sec starting move 1"]
[BlackTitle "FM"]
[WhiteFideId "1720244"]
[BlackFideId "1704583"]
[WhiteElo "2007"]
[BlackElo "2121"]

1. d4 {[%clk 01:30:57]} {[%emt 00:00:02]} b6 {[%clk 01:30:20]} {[%emt
00:00:40]} 2. e4 {[%clk 01:30:31]} {[%emt 00:00:56]} Bb7 {[%clk 01:30:46]}
{[%emt 00:00:05]} 3. Bd3 {[%clk 01:28:59]} {[%emt 00:02:02]} e6 {[%clk
01:31:07]} {[%emt 00:00:09]} 4. Qe2 {[%clk 01:26:48]} {[%emt 00:02:40]} g6
{[%clk 01:30:38]} {[%emt 00:01:00]} 5. Nf3 {[%clk 01:25:45]} {[%emt 00:01:33]}
Bg7 {[%clk 01:30:43]} {[%emt 00:00:25]} 6. c3 {[%clk 01:25:21]} {[%emt
00:00:54]} Ne7 {[%clk 01:30:32]} {[%emt 00:00:41]} 7. h4 {[%clk 01:25:10]}
{[%emt 00:00:41]} h6 {[%clk 01:29:58]} {[%emt 00:01:04]} 8. Nbd2 {[%clk
01:13:29]} {[%emt 00:12:10]} d6 {[%clk 01:28:07]} {[%emt 00:02:22]} 9. a4
{[%clk 01:12:23]} {[%emt 00:01:36]} a6 {[%clk 01:27:41]} {[%emt 00:00:56]} 10.
Nf1 {[%clk 01:12:31]} {[%emt 00:00:22]} Nd7 {[%clk 01:27:32]} {[%emt 00:00:39]}
11. Ng3 {[%clk 01:11:17]} {[%emt 00:01:44]} Ra7 {[%clk 01:26:40]} {[%emt
00:01:22]} 12. Bd2 {[%clk 01:02:13]} {[%emt 00:09:34]} Qa8 {[%clk 01:26:40]}
{[%emt 00:00:30]} 13. O-O {[%clk 00:48:20]} {[%emt 00:14:22]} e5 {[%clk
01:17:29]} {[%emt 00:09:41]} 14. Rfe1 {[%clk 00:43:06]} {[%emt 00:05:44]} O-O
{[%clk 01:14:59]} {[%emt 00:03:01]} 15. h5 {[%clk 00:33:38]} {[%emt 00:09:58]}
c5 {[%clk 00:58:43]} {[%emt 00:16:46]} 16. dxe5 {[%clk 00:32:05]} {[%emt
00:02:03]} dxe5 {[%clk 00:58:44]} {[%emt 00:00:29]} 17. Bc4 {[%clk 00:30:40]}
{[%emt 00:01:54]} Kh8 {[%clk 00:57:39]} {[%emt 00:01:36]} 18. Nh4 {[%clk
00:25:45]} {[%emt 00:05:24]} Nf6 {[%clk 00:54:38]} {[%emt 00:03:32]} 19. Rad1
{[%clk 00:12:38]} {[%emt 00:13:37]} Bc8 {[%clk 00:51:53]} {[%emt 00:03:15]} 20.
Bxf7 {[%clk 00:03:03]} {[%emt 00:10:05]} Rxf7 {[%clk 00:47:58]} {[%emt
00:04:25]} 21. hxg6 {[%clk 00:03:32]} {[%emt 00:00:02]} Rf8 {[%clk 00:47:13]}
{[%emt 00:01:14]} 22. Nhf5 {[%clk 00:00:46]} {[%emt 00:03:16]} Nxf5 {[%clk
00:45:59]} {[%emt 00:01:44]} 23. Nxf5 {[%clk 00:00:33]} {[%emt 00:00:43]} Bxf5
{[%clk 00:40:59]} {[%emt 00:05:30]} 24. exf5 {[%clk 00:01:01]} {[%emt
00:00:01]} Re7 {[%clk 00:38:18]} {[%emt 00:03:11]} 25. g4 {[%clk 00:01:20]}
{[%emt 00:00:12]} e4 {[%clk 00:30:24]} {[%emt 00:08:25]} 26. g5 {[%clk
00:01:08]} {[%emt 00:00:42]} hxg5 {[%clk 00:28:37]} {[%emt 00:02:17]} 27. Bxg5
{[%clk 00:01:13]} {[%emt 00:00:25]} Qb7 {[%clk 00:27:52]} {[%emt 00:01:15]} 28.
Rd6 {[%clk 00:01:16]} {[%emt 00:00:26]} b5 {[%clk 00:26:24]} {[%emt 00:01:58]}
29. Red1 {[%clk 00:01:15]} {[%emt 00:00:32]} Qc8 {[%clk 00:24:46]} {[%emt
00:02:07]} 30. Bxf6 {[%clk 00:01:00]} {[%emt 00:00:45]} Bxf6 {[%clk 00:25:07]}
{[%emt 00:00:08]} 31. Qh5+ {[%clk 00:01:09]} {[%emt 00:00:22]} Kg8 {[%clk
00:25:34]} {[%emt 00:00:03]} 32. Kg2 {[%clk 00:00:39]} {[%emt 00:01:00]} Be5
{[%clk 00:13:41]} {[%emt 00:12:23]} 33. Re6 {[%clk 00:00:54]} {[%emt 00:00:15]}
Rxf5 {[%clk 00:13:06]} {[%emt 00:01:05]} 34. Qxf5 {[%clk 00:01:11]} {[%emt
00:00:14]} Qxe6 {[%clk 00:13:17]} {[%emt 00:00:19]} 35. Rd8+ {[%clk 00:00:40]}
{[%emt 00:01:01]} Kg7 {[%clk 00:13:41]} {[%emt 00:00:05]} 36. Qxe4 {[%clk
00:00:31]} {[%emt 00:00:38]} Qxg6+ {[%clk 00:13:53]} {[%emt 00:00:18]} 37.
Qxg6+ {[%clk 00:00:45]} {[%emt 00:00:17]} Kxg6 {[%clk 00:14:19]} {[%emt
00:00:04]} 38. axb5 {[%clk 00:01:02]} {[%emt 00:00:14]} axb5 {[%clk 00:14:45]}
{[%emt 00:00:04]} 39. Rd5 {[%clk 00:01:14]} {[%emt 00:00:17]} Bf6 {[%clk
00:03:46]} {[%emt 00:11:29]} 40. Rxc5 {[%clk 00:00:52]} {[%emt 00:00:52]} Re5
{[%clk 00:03:32]} {[%emt 00:00:44]} 41. Rc6 {[%clk 00:15:24]} {[%emt 00:15:58]}
Kf5 {[%clk 00:32:39]} {[%emt 00:01:23]} 42. Kf3 {[%clk 00:12:46]} {[%emt
00:03:07]} Be7 {[%clk 00:31:59]} {[%emt 00:01:11]} 43. b4 {[%clk 00:11:21]}
{[%emt 00:01:55]} Re6 {[%clk 00:30:45]} {[%emt 00:01:44]} 44. Rc8 {[%clk
00:10:26]} {[%emt 00:01:25]} Re4 {[%clk 00:22:52]} {[%emt 00:08:23]} 45. Rb8
{[%clk 00:10:28]} {[%emt 00:00:27]} Re5 {[%clk 00:22:57]} {[%emt 00:00:26]} 46.
Rc8 {[%clk 00:10:12]} {[%emt 00:00:46]} Rd5 {[%clk 00:22:07]} {[%emt 00:01:20]}
47. c4 {[%clk 00:09:24]} {[%emt 00:01:17]} Rd3+ {[%clk 00:21:47]} {[%emt
00:00:51]} 48. Ke2 {[%clk 00:08:59]} {[%emt 00:00:55]} Rc3 {[%clk 00:21:45]}
{[%emt 00:00:32]} 49. Re8 {[%clk 00:08:34]} {[%emt 00:00:56]} Bxb4 {[%clk
00:21:22]} {[%emt 00:00:53]} 50. cxb5 {[%clk 00:08:53]} {[%emt 00:00:09]} Rb3
{[%clk 00:18:19]} {[%emt 00:03:33]} 51. f3 {[%clk 00:06:36]} {[%emt 00:02:48]}
Bc5 {[%clk 00:17:50]} {[%emt 00:00:59]} 52. Rb8 {[%clk 00:04:06]} {[%emt
00:03:00]} Kf4 {[%clk 00:17:59]} {[%emt 00:00:20]} 53. Kd2 {[%clk 00:02:45]}
{[%emt 00:01:51]} Kxf3 {[%clk 00:17:08]} {[%emt 00:01:21]} 54. Kc2 {[%clk
00:02:19]} {[%emt 00:00:56]} Rb4 {[%clk 00:17:25]} {[%emt 00:00:14]} 55. Kc3
{[%clk 00:02:13]} {[%emt 00:00:36]} Ke4 {[%clk 00:16:02]} {[%emt 00:01:53]} 56.
b6 {[%clk 00:01:42]} {[%emt 00:01:01]} Bd6 {[%clk 00:14:57]} {[%emt 00:01:35]}
57. Rd8 {[%clk 00:00:51]} {[%emt 00:01:20]} Rxb6 {[%clk 00:15:11]} {[%emt
00:00:17]} 58. Re8+ {[%clk 00:00:46]} {[%emt 00:00:35]} Be5+ {[%clk 00:15:11]}
{[%emt 00:00:30]} 59. Kc4 {[%clk 00:00:54]} {[%emt 00:00:22]} Rc6+ {[%clk
00:15:24]} {[%emt 00:00:17]} 60. Kb5 {[%clk 00:01:08]} {[%emt 00:00:16]} Rc1
{[%clk 00:15:46]} {[%emt 00:00:09]} 61. Rd8 {[%clk 00:01:01]} {[%emt 00:00:36]}
Rc2 {[%clk 00:15:45]} {[%emt 00:00:31]} 62. Rd7 {[%clk 00:00:48]} {[%emt
00:00:43]} Rb2+ {[%clk 00:14:37]} {[%emt 00:01:37]} 63. Kc4 {[%clk 00:01:05]}
{[%emt 00:00:13]} Rb8 {[%clk 00:14:36]} {[%emt 00:00:32]} 64. Rh7 {[%clk
00:00:47]} {[%emt 00:00:48]} Rc8+ {[%clk 00:14:58]} {[%emt 00:00:08]} 65. Kb3
{[%clk 00:00:37]} {[%emt 00:00:39]} Kd5 {[%clk 00:13:21]} {[%emt 00:02:07]} 66.
Rd7+ {[%clk 00:00:39]} {[%emt 00:00:29]} Bd6 {[%clk 00:13:42]} {[%emt
00:00:10]} 67. Rh7 {[%clk 00:00:56]} {[%emt 00:00:12]} Rb8+ {[%clk 00:13:48]}
{[%emt 00:00:23]} 68. Kc2 {[%clk 00:00:58]} {[%emt 00:00:29]} Be5 {[%clk
00:14:00]} {[%emt 00:00:18]} 69. Rh4 {[%clk 00:00:57]} {[%emt 00:00:30]} Rb2+
{[%clk 00:14:17]} {[%emt 00:00:14]} 70. Kd3 {[%clk 00:01:11]} {[%emt 00:00:16]}
Ra2 {[%clk 00:14:03]} {[%emt 00:00:45]} 71. Rg4 {[%clk 00:00:57]} {[%emt
00:00:43]} Bf6 {[%clk 00:13:59]} {[%emt 00:00:33]} 72. Rg6 {[%clk 00:00:46]}
{[%emt 00:00:41]} Ra3+ {[%clk 00:14:13]} {[%emt 00:00:17]} 73. Ke2 {[%clk
00:00:56]} {[%emt 00:00:20]} Be5 {[%clk 00:14:28]} {[%emt 00:00:15]} 74. Rg4
{[%clk 00:01:16]} {[%emt 00:00:09]} Bd4 {[%clk 00:13:23]} {[%emt 00:01:36]} 75.
Rh4 {[%clk 00:01:20]} {[%emt 00:00:26]} Rg3 {[%clk 00:12:43]} {[%emt 00:01:11]}
76. Rh5+ {[%clk 00:01:19]} {[%emt 00:00:30]} Kc4 {[%clk 00:12:45]} {[%emt
00:00:28]} 77. Rh4 {[%clk 00:00:58]} {[%emt 00:00:51]} Kc3 {[%clk 00:12:45]}
{[%emt 00:00:31]} 78. Re4 {[%clk 00:00:46]} {[%emt 00:00:41]} Rh3 {[%clk
00:12:36]} {[%emt 00:00:39]} 79. Re8 {[%clk 00:00:50]} {[%emt 00:00:26]} Rh2+
{[%clk 00:11:42]} {[%emt 00:01:24]} 80. Kf3 {[%clk 00:01:09]} {[%emt 00:00:10]}
Kd3 {[%clk 00:12:07]} {[%emt 00:00:06]} 81. Ra8 {[%clk 00:01:27]} {[%emt
00:00:12]} Rf2 {[%clk 00:11:49]} {[%emt 00:00:48]} 82. Kg3 {[%clk 00:01:30]}
{[%emt 00:00:26]} Rf7 {[%clk 00:12:08]} {[%emt 00:00:12]} 83. Re8 {[%clk
00:01:45]} {[%emt 00:00:15]} Bb6 {[%clk 00:10:47]} {[%emt 00:01:51]} 84. Kg4
{[%clk 00:02:09]} {[%emt 00:00:06]} Be3 {[%clk 00:10:05]} {[%emt 00:01:12]} 85.
Rd8+ {[%clk 00:02:05]} {[%emt 00:00:34]} Ke2 {[%clk 00:10:07]} {[%emt
00:00:27]} 86. Re8 {[%clk 00:02:01]} {[%emt 00:00:35]} Rf6 {[%clk 00:09:33]}
{[%emt 00:01:04]} 87. Ra8 {[%clk 00:01:51]} {[%emt 00:00:40]} Rf4+ {[%clk
00:09:45]} {[%emt 00:00:19]} 88. Kg3 {[%clk 00:02:07]} {[%emt 00:00:12]} Rf7
{[%clk 00:08:32]} {[%emt 00:01:44]} 89. Kg4 {[%clk 00:02:15]} {[%emt 00:00:22]}
Bc5 {[%clk 00:08:34]} {[%emt 00:00:29]} 90. Re8+ {[%clk 00:02:13]} {[%emt
00:00:31]} Kf2 {[%clk 00:08:52]} {[%emt 00:00:11]} 91. Ra8 {[%clk 00:02:15]}
{[%emt 00:00:29]} Bd6 {[%clk 00:08:48]} {[%emt 00:00:33]} 92. Ra4 {[%clk
00:01:59]} {[%emt 00:00:47]} Ke3 {[%clk 00:08:29]} {[%emt 00:00:50]} 93. Rc4
{[%clk 00:01:20]} {[%emt 00:01:08]} Be5 {[%clk 00:08:08]} {[%emt 00:00:51]} 94.
Kg5 {[%clk 00:00:47]} {[%emt 00:01:02]} Bd4 {[%clk 00:08:15]} {[%emt 00:00:24]}
95. Kg6 {[%clk 00:00:50]} {[%emt 00:00:27]} Rf2 {[%clk 00:07:21]} {[%emt
00:01:24]} 96. Rc1 {[%clk 00:00:38]} {[%emt 00:00:42]} Rf8 {[%clk 00:06:30]}
{[%emt 00:01:21]} 97. Re1+ {[%clk 00:00:52]} {[%emt 00:00:16]} Kf2 {[%clk
00:05:59]} {[%emt 00:01:01]} 98. Re4 {[%clk 00:00:58]} {[%emt 00:00:23]} Bc3
{[%clk 00:05:02]} {[%emt 00:01:28]} 99. Rc4 {[%clk 00:01:11]} {[%emt 00:00:17]}
Rf3 {[%emt 00:00:23]} 100. Ra4 {[%clk 00:01:06]} {[%emt 00:00:34]} Kg3 {[%clk
00:05:24]} {[%emt 00:00:16]} 101. Rc4 {[%clk 00:01:08]} {[%emt 00:00:28]} Be5
{[%clk 00:05:25]} {[%emt 00:00:30]} 102. Ra4 {[%clk 00:01:11]} {[%emt
00:00:26]} Rf6+ {[%clk 00:05:25]} {[%emt 00:00:29]} 103. Kg5 {[%clk 00:01:04]}
{[%emt 00:00:37]} Rc6 {[%clk 00:05:24]} {[%emt 00:00:31]} 104. Rg4+ {[%clk
00:00:48]} {[%emt 00:00:47]} Kf3 {[%clk 00:05:47]} {[%emt 00:00:07]} 105. Ra4
{[%clk 00:01:02]} {[%emt 00:00:16]} Bc3 {[%clk 00:03:03]} {[%emt 00:03:14]} 106.
Rf4+ {[%clk 00:01:02]} {[%emt 00:00:30]} Ke2 {[%clk 00:03:30]} {[%emt
00:00:03]} 107. Re4+ {[%clk 00:01:16]} {[%emt 00:00:16]} Kd3 {[%clk 00:03:56]}
{[%emt 00:00:04]} 108. Ra4 {[%clk 00:01:17]} {[%emt 00:00:29]} Bd4 {[%clk
00:04:04]} {[%emt 00:00:23]} 1/2-1/2

[Event "Masterklassen 2025"]
[Site "Uppsala, Sweden"]
[Date "2025.06.28"]
[Round "1.16"]
[White "Dingertz, Erik"]
[Black "Ostensson, Julia"]
[Result "1-0"]
[TimeControl "90 min for 40 move + 30 min with an increment of 30 sec starting move 1"]
[WhiteFideId "1741578"]
[BlackFideId "1747703"]
[WhiteElo "2121"]
[BlackElo "2005"]

1. c4 {[%clk 01:30:51]} Nf6 {[%clk 01:30:54]} {[%emt 00:00:06]} 2. Nc3 {[%clk
01:31:14]} {[%emt 00:00:07]} g6 {[%clk 01:31:20]} {[%emt 00:00:05]} 3. e4
{[%clk 01:31:26]} {[%emt 00:00:18]} d6 {[%clk 01:31:44]} {[%emt 00:00:05]} 4.
d4 {[%clk 01:31:43]} {[%emt 00:00:14]} Bg7 {[%clk 01:32:10]} {[%emt 00:00:04]}
5. Nf3 {[%clk 01:32:09]} {[%emt 00:00:04]} O-O {[%clk 01:32:33]} {[%emt
00:00:07]} 6. Be2 {[%clk 01:32:05]} {[%emt 00:00:33]} e5 {[%clk 01:32:59]}
{[%emt 00:00:05]} 7. Be3 {[%clk 01:31:40]} {[%emt 00:00:55]} Ng4 {[%clk
01:33:24]} {[%emt 00:00:05]} 8. Bg5 {[%clk 01:32:04]} {[%emt 00:00:05]} f6
{[%clk 01:33:50]} {[%emt 00:00:04]} 9. Bc1 {[%clk 01:31:20]} {[%emt 00:01:13]}
Nc6 {[%clk 01:33:47]} {[%emt 00:00:35]} 10. O-O {[%clk 01:29:50]} {[%emt
00:02:00]} f5 {[%clk 01:34:05]} {[%emt 00:00:12]} 11. dxe5 {[%clk 01:28:50]}
{[%emt 00:01:29]} Ngxe5 {[%clk 01:33:24]} {[%emt 00:01:12]} 12. Nxe5 {[%clk
01:24:33]} {[%emt 00:04:46]} Bxe5 {[%clk 01:30:51]} {[%emt 00:03:03]} 13. f4
{[%clk 01:23:50]} {[%emt 00:01:13]} Bxc3 {[%clk 01:01:48]} {[%emt 00:29:33]} 14.
bxc3 {[%clk 01:23:57]} {[%emt 00:00:23]} Qe7 {[%clk 00:52:22]} {[%emt
00:09:56]} 15. exf5 {[%clk 01:16:31]} {[%emt 00:07:57]} Bxf5 {[%clk 00:51:53]}
{[%emt 00:01:00]} 16. Bf3 {[%clk 01:16:32]} {[%emt 00:00:28]} Rae8 {[%clk
00:52:04]} {[%emt 00:00:19]} 17. c5 {[%clk 01:15:46]} {[%emt 00:01:16]} dxc5
{[%clk 00:50:26]} {[%emt 00:02:08]} 18. Qb3+ {[%clk 01:15:18]} {[%emt
00:00:58]} c4 {[%clk 00:37:55]} {[%emt 00:13:01]} 19. Qxc4+ {[%clk 01:10:31]}
{[%emt 00:05:16]} Be6 {[%clk 00:34:22]} {[%emt 00:04:04]} 20. Qb5 {[%clk
01:09:37]} {[%emt 00:01:24]} a6 {[%clk 00:20:03]} {[%emt 00:14:50]} 21. Qxb7
{[%clk 01:06:47]} {[%emt 00:03:19]} Qc5+ {[%clk 00:11:56]} {[%emt 00:08:36]} 22.
Kh1 {[%clk 01:06:24]} {[%emt 00:00:53]} Na5 {[%clk 00:00:36]} {[%emt 00:11:51]}
23. Qb4 {[%clk 01:03:03]} {[%emt 00:03:51]} Qb5 {[%clk 00:00:32]} {[%emt
00:00:34]} 24. Ba3 {[%clk 01:02:10]} {[%emt 00:01:22]} Rf7 {[%clk 00:00:33]}
{[%emt 00:00:30]} 25. Rae1 {[%clk 01:00:04]} {[%emt 00:02:36]} Nc4 {[%clk
00:00:38]} {[%emt 00:00:25]} 26. Qxb5 {[%clk 00:57:52]} {[%emt 00:02:42]} axb5
{[%clk 00:01:05]} {[%emt 00:00:03]} 27. Bd5 {[%clk 00:57:59]} {[%emt 00:00:23]}
Nxa3 {[%clk 00:00:33]} {[%emt 00:01:02]} 28. Bxe6 {[%clk 00:58:21]} {[%emt
00:00:07]} Nc2 {[%clk 00:00:31]} {[%emt 00:00:32]} 29. Bxf7+ {[%clk 00:58:42]}
{[%emt 00:00:10]} Kxf7 {[%clk 00:00:56]} {[%emt 00:00:04]} 30. Rxe8 {[%clk
00:58:51]} {[%emt 00:00:21]} Kxe8 {[%clk 00:01:20]} {[%emt 00:00:07]} 31. Rd1
{[%clk 00:59:05]} {[%emt 00:00:15]} Na3 {[%clk 00:01:05]} {[%emt 00:00:46]} 32.
Rd5 {[%clk 00:58:27]} {[%emt 00:01:07]} Ke7 {[%clk 00:00:41]} {[%emt 00:00:54]}
33. f5 {[%clk 00:58:42]} {[%emt 00:00:16]} c6 {[%clk 00:00:40]} {[%emt
00:00:31]} 34. fxg6 {[%clk 00:59:03]} {[%emt 00:00:09]} hxg6 {[%clk 00:01:05]}
{[%emt 00:00:05]} 35. Rg5 {[%clk 00:59:28]} {[%emt 00:00:05]} 1-0

[Event "Masterklassen 2025"]
[Site "Uppsala, Sweden"]
[Date "2025.06.29"]
[Round "2.1"]
[White "Sundin, Emanuel"]
[Black "Cederstam, Carl"]
[Result "0-1"]
[TimeControl "90 min for 40 move + 30 min with an increment of 30 sec starting move 1"]
[BlackTitle "FM"]
[WhiteFideId "1719173"]
[BlackFideId "1713329"]
[WhiteElo "2117"]
[BlackElo "2316"]

1. e4 {[%clk 01:30:54]} {[%emt 00:00:05]} e5 {[%clk 01:30:30]} {[%emt
00:00:30]} 2. Nf3 {[%clk 01:31:08]} {[%emt 00:00:15]} Nc6 {[%clk 01:30:51]}
{[%emt 00:00:10]} 3. Nc3 {[%clk 01:31:28]} {[%emt 00:00:10]} Nf6 {[%clk
01:31:09]} {[%emt 00:00:13]} 4. d4 {[%clk 01:31:44]} {[%emt 00:00:14]} exd4
{[%clk 01:31:32]} {[%emt 00:00:06]} 5. Nd5 {[%clk 01:32:06]} {[%emt 00:00:08]}
Nb4 {[%clk 01:27:44]} {[%emt 00:04:16]} 6. Bc4 {[%clk 01:30:36]} {[%emt
00:02:03]} Nbxd5 {[%clk 01:25:28]} {[%emt 00:02:45]} 7. exd5 {[%clk 01:30:54]}
{[%emt 00:00:13]} Bb4+ {[%clk 01:24:27]} {[%emt 00:01:31]} 8. Kf1 {[%clk
01:29:36]} {[%emt 00:01:47]} Be7 {[%clk 01:03:12]} {[%emt 00:21:45]} 9. Qxd4
{[%clk 01:27:49]} {[%emt 00:02:17]} c5 {[%clk 01:01:59]} {[%emt 00:01:43]} 10.
Qd3 {[%clk 01:17:27]} {[%emt 00:10:52]} d6 {[%clk 01:02:15]} {[%emt 00:00:13]}
11. Bb5+ {[%clk 01:16:49]} {[%emt 00:01:08]} Bd7 {[%clk 01:02:32]} {[%emt
00:00:13]} 12. a4 {[%clk 01:06:09]} {[%emt 00:11:11]} O-O {[%clk 01:01:25]}
{[%emt 00:01:37]} 13. h3 {[%clk 01:04:50]} {[%emt 00:01:49]} Ne8 {[%clk
00:52:31]} {[%emt 00:09:24]} 14. g3 {[%clk 01:01:21]} {[%emt 00:03:59]} Nc7
{[%clk 00:50:38]} {[%emt 00:02:23]} 15. Bxd7 {[%clk 00:59:19]} {[%emt
00:02:32]} Qxd7 {[%clk 00:51:05]} {[%emt 00:00:03]} 16. Kg2 {[%clk 00:56:51]}
{[%emt 00:02:57]} b6 {[%clk 00:43:23]} {[%emt 00:08:13]} 17. h4 {[%clk
00:46:04]} {[%emt 00:11:18]} Rae8 {[%clk 00:35:14]} {[%emt 00:08:37]} 18. Ng5
{[%clk 00:41:44]} {[%emt 00:04:51]} f5 {[%clk 00:33:35]} {[%emt 00:02:07]} 19.
c3 {[%clk 00:31:20]} {[%emt 00:10:56]} Bf6 {[%clk 00:24:59]} {[%emt 00:09:06]}
20. Bf4 {[%clk 00:27:26]} {[%emt 00:04:25]} Be5 {[%clk 00:24:25]} {[%emt
00:01:03]} 21. Bd2 {[%clk 00:25:45]} {[%emt 00:02:11]} h6 {[%clk 00:22:49]}
{[%emt 00:02:06]} 22. Nf3 {[%clk 00:21:58]} {[%emt 00:04:17]} Qf7 {[%clk
00:22:38]} {[%emt 00:00:41]} 23. Nxe5 {[%clk 00:20:17]} {[%emt 00:02:11]} dxe5
{[%clk 00:18:50]} {[%emt 00:04:19]} 24. c4 {[%clk 00:18:59]} {[%emt 00:01:47]}
f4 {[%clk 00:18:47]} {[%emt 00:00:32]} 25. Qe4 {[%clk 00:17:58]} {[%emt
00:01:32]} fxg3 {[%clk 00:15:31]} {[%emt 00:03:46]} 26. f3 {[%clk 00:17:49]}
{[%emt 00:00:39]} Qd7 {[%clk 00:15:38]} {[%emt 00:00:23]} 27. Rh3 {[%clk
00:16:01]} {[%emt 00:02:18]} Ne6 {[%clk 00:15:54]} {[%emt 00:00:14]} 28. Rxg3
{[%clk 00:13:44]} {[%emt 00:02:47]} Nf4+ {[%clk 00:14:28]} {[%emt 00:01:56]} 29.
Kf2 {[%clk 00:13:06]} {[%emt 00:01:08]} Kh8 {[%clk 00:07:57]} {[%emt 00:07:01]}
30. Bc3 {[%clk 00:12:20]} {[%emt 00:01:17]} Nh5 {[%clk 00:07:21]} {[%emt
00:01:05]} 31. Bxe5 {[%clk 00:05:20]} {[%emt 00:07:30]} Rf5 {[%clk 00:06:54]}
{[%emt 00:00:56]} 32. Rxg7 {[%clk 00:00:43]} {[%emt 00:05:08]} Nxg7 {[%clk
00:07:14]} {[%emt 00:00:11]} 33. Bxg7+ {[%clk 00:01:09]} {[%emt 00:00:04]} Kxg7
{[%clk 00:07:40]} {[%emt 00:00:03]} 34. Rg1+ {[%clk 00:01:11]} {[%emt
00:00:28]} Kh8 {[%clk 00:06:26]} {[%emt 00:01:43]} 0-1

[Event "Masterklassen 2025"]
[Site "Uppsala, Sweden"]
[Date "2025.06.29"]
[Round "2.2"]
[White "Nygren, David"]
[Black "Hammarstrom, Ulf"]
[Result "1/2-1/2"]
[TimeControl "90 min for 40 move + 30 min with an increment of 30 sec starting move 1"]
[WhiteFideId "1704761"]
[BlackFideId "1710214"]
[WhiteElo "2094"]
[BlackElo "2176"]

1. e4 {[%clk 01:30:56]} {[%emt 00:00:02]} e5 {[%clk 01:25:02]} {[%emt
00:05:58]} 2. Nf3 {[%clk 01:31:00]} {[%emt 00:00:25]} Nf6 {[%clk 01:25:11]}
{[%emt 00:00:23]} 3. d4 {[%clk 01:29:13]} {[%emt 00:02:17]} Nxe4 {[%clk
01:25:12]} {[%emt 00:00:29]} 4. Bd3 {[%clk 01:29:26]} {[%emt 00:00:17]} d5
{[%clk 01:25:03]} {[%emt 00:00:39]} 5. Nxe5 {[%clk 01:29:16]} {[%emt 00:00:39]}
Nd7 {[%clk 01:25:03]} {[%emt 00:00:30]} 6. Nxd7 {[%clk 01:27:44]} {[%emt
00:02:02]} Bxd7 {[%clk 01:25:26]} {[%emt 00:00:08]} 7. O-O {[%clk 01:26:32]}
{[%emt 00:01:42]} Bd6 {[%clk 01:25:11]} {[%emt 00:00:44]} 8. c4 {[%clk
01:24:12]} {[%emt 00:02:50]} c6 {[%clk 01:24:55]} {[%emt 00:00:47]} 9. Nc3
{[%clk 01:22:15]} {[%emt 00:02:26]} Nxc3 {[%clk 01:23:23]} {[%emt 00:02:02]} 10.
bxc3 {[%clk 01:22:26]} {[%emt 00:00:19]} O-O {[%clk 01:23:17]} {[%emt
00:00:37]} 11. cxd5 {[%clk 01:21:07]} {[%emt 00:01:49]} cxd5 {[%clk 01:23:38]}
{[%emt 00:00:09]} 12. Qf3 {[%clk 01:20:52]} {[%emt 00:00:44]} Qc7 {[%clk
01:15:18]} {[%emt 00:08:51]} 13. h3 {[%clk 01:18:09]} {[%emt 00:03:12]} Be6
{[%clk 01:05:24]} {[%emt 00:10:25]} 14. Re1 {[%clk 01:14:32]} {[%emt 00:04:06]}
Rac8 {[%clk 00:59:29]} {[%emt 00:06:26]} 15. Bd2 {[%clk 01:14:15]} {[%emt
00:00:46]} a6 {[%clk 00:53:47]} {[%emt 00:06:13]} 16. Re2 {[%clk 01:10:24]}
{[%emt 00:04:20]} Qd7 {[%clk 00:49:32]} {[%emt 00:04:46]} 17. Rae1 {[%clk
01:07:12]} {[%emt 00:03:41]} Rfe8 {[%clk 00:42:48]} {[%emt 00:07:14]} 18. Re3
{[%clk 00:59:58]} {[%emt 00:07:44]} g6 {[%clk 00:30:32]} {[%emt 00:12:47]} 19.
Bc2 {[%clk 00:51:49]} {[%emt 00:08:38]} Bf8 {[%clk 00:29:36]} {[%emt 00:01:26]}
20. R3e2 {[%clk 00:48:36]} {[%emt 00:03:42]} Bg7 {[%clk 00:28:46]} {[%emt
00:01:22]} 21. Bb3 {[%clk 00:48:45]} {[%emt 00:00:21]} Rf8 {[%clk 00:27:13]}
{[%emt 00:02:03]} 22. Bc1 {[%clk 00:46:02]} {[%emt 00:03:12]} Rc6 {[%clk
00:25:53]} {[%emt 00:01:51]} 23. Bd2 {[%clk 00:43:38]} {[%emt 00:02:53]} Rfc8
{[%clk 00:22:32]} {[%emt 00:03:52]} 24. Qg3 {[%clk 00:38:35]} {[%emt 00:05:32]}
Qd6 {[%clk 00:17:27]} {[%emt 00:05:36]} 25. Bf4 {[%clk 00:35:35]} {[%emt
00:03:29]} Qd7 {[%clk 00:17:49]} {[%emt 00:00:09]} 26. Bd2 {[%clk 00:35:43]}
{[%emt 00:00:21]} Qd6 {[%clk 00:17:54]} {[%emt 00:00:25]} 27. Bf4 {[%clk
00:36:08]} {[%emt 00:00:05]} 1/2-1/2